Cogmind - Beta 14 @@@ ROGUE MODE // 2024.12.03 @ 19:09:17 Player: Fangrelle Result: Core destroyed Performance ------------- Evolutions (0) 0 Regions Visited (2) 400 Robots Destroyed (22) 110 Value Destroyed (584) 584 Prototype IDs (1) 20 Alien Tech Used (0) 0 Bonus (0) 0 TOTAL SCORE: 1114 Bonus ------- None Cogmind --------- Core Integrity 0/250 Matter 284/300 Energy 234/250 System Corruption 5% Temperature Critical (593) Movement Core (900) Ox17 Location -10/Subcaves Parts ------- > --- POWER (1) -------- Ion Engine > --- PROPULSION (2) --- (None) > --- UTILITY (2) ------ High-capacity Storage Unit Terrain Scanner > --- WEAPON (2) ------- Advanced Beam Cannon Assault Rifle > --- INVENTORY (20) --- High-capacity Storage Unit High-capacity Matter Pod (200) Terrain Scanner Hacking Suite Field Recycling Unit (0) Field Recycling Unit (0) Mini Grenade Launcher Mini Grenade Launcher Mini Grenade Launcher Mini Grenade Launcher Mining Laser Makeshift Hammer Peak State ------------ > --- POWER ------------ Ion Engine > --- PROPULSION ------- Light Treads Light Treads > --- UTILITY ---------- High-capacity Storage Unit Terrain Scanner > --- WEAPON ----------- Advanced Beam Cannon Advanced Beam Cannon > --- INVENTORY -------- Compact Wheel High-capacity Storage Unit High-capacity Matter Pod Terrain Scanner Hacking Suite Field Recycling Unit Field Recycling Unit Assault Rifle Mini Grenade Launcher Mini Grenade Launcher Mini Grenade Launcher Mini Grenade Launcher Mining Laser [Rating: 13] Favorites ----------- Power Ion Engine Engine Ion Engine Propulsion Light Treads Treads Light Treads Leg Aluminum Leg Wheel Compact Wheel Utility Terrain Scanner Device Terrain Scanner Storage High-capacity Storage Unit Weapon Advanced Beam Cannon Energy Gun Small Laser Energy Cannon Advanced Beam Cannon Ballistic Gun Assault Rifle Build | -11 -10 -10 ------- Run | Yrd Mat Sub Slots Evolved . | . . . Power . | . . . Propulsion . | . . . Utility . | . . . Weapon . | . . . Parts Attached 16 | . 14 2 Power 3 | . 3 . Engine 3 | . 3 . Core . | . . . Reactor . | . . . Propulsion 4 | . 3 1 Treads 3 | . 3 . Leg . | . . . Wheel 1 | . . 1 Hover . | . . . Flight . | . . . Utility 4 | . 4 . Device 2 | . 2 . Storage 2 | . 2 . Processor . | . . . Hackware . | . . . Protection . | . . . Artifact . | . . . Weapon 5 | . 4 1 Energy Gun . | . . . Energy Cannon 3 | . 3 . Ballistic Gun 2 | . 1 1 Ballistic Cannon . | . . . Launcher . | . . . Special Weapon . | . . . Impact Weapon . | . . . Slashing Weapon . | . . . Piercing Weapon . | . . . Special Melee Weapon . | . . . Unidentified Prototypes 1 | . 1 . Parts Lost 5 | . 1 4 Power . | . . . Propulsion 3 | . . 3 Utility 1 | . 1 . Weapon 1 | . . 1 Highest Loss Streak 3 | . 1 3 To Critical Strikes . | . . . Average Slot Usage (%) 98 | . 97 99 Engine 14 | . 14 14 Treads 22 | . 27 14 Wheel 5 | . . 13 Device 12 | . 11 14 Storage 14 | . 14 14 Energy Cannon 15 | . 7 27 Ballistic Gun 12 | . 20 . Peak Build Rating 13 | . 13 13 Average Rating 10 | . 8 12 On Entrance 8 | 6 6 13 Naked Turns . | . . . Heaviest Build 54 | 13 54 54 Greatest Support 40 | 20 40 40 Greatest Overweight (x) 3 | . 1 3 Average Overweight (x) 1 | . . 2 Largest Inventory Capacity 20 | . 20 20 Average Capacity 15 | . 12 20 Most Carried 13 | . 13 13 Average Carried 10 | . 9 12 Final Capacity 20 | 8 20 20 Final Carried 13 | 6 13 12 Class Distribution -------------------- 100% | Mutant Dominant Class ---------------- Mutant | -10/Materials Mutant | -10/Subcaves Resources | -11 -10 -10 ----------- Run | Yrd Mat Sub Matter Collected 797 | 200 358 239 Remotely 95 | . 95 . Salvage Created 765 | . 603 162 Parts 54 | . 46 8 Haulers Intercepted 2 | . 2 . Recyclers Shooed . | . . . Parts Field Recycled . | . . . Retrieved Matter . | . . . Parts Self-Destructed . | . . . Prevented . | . . . Kills | -11 -10 -10 ------- Run | Yrd Mat Sub Combat Hostiles Destroyed 15 | . 11 4 Guns 10 | . 10 . Cannons 4 | . 1 3 Classes Destroyed 7 | . 6 1 Builder 1 | . 1 . Hauler 2 | . 2 . Operator 1 | . 1 . Watcher 3 | . 3 . Swarmer 3 | . 3 . Grunt 8 | . 8 . Subdweller 4 | . . 4 Best Kill Streak 7 | . 7 2 Combat Bots Only 3 | . 3 2 Max Kills in Single Turn 1 | . 1 1 Gunslinging . | . . . Exploded . | . . . Melee . | . . . Uniques/NPCs Destroyed . | . . . Combat | -11 -10 -10 -------- Run | Yrd Mat Sub Hostile Shots Fired 77 | . 55 22 Missed 22 | . 17 5 Damage Taken 965 | . 494 471 Core 277 | . 90 187 Absorbed by Shields . | . . . Core Remaining (%) 100 | 100 . . Volleys Fired 69 | . 54 15 Largest 2 | . 2 2 Hottest 136 | . 136 136 Shots Fired 140 | . 108 32 Gun 100 | . 98 2 Cannon 40 | . 10 30 Launcher . | . . . Special . | . . . Kinetic 100 | . 98 2 Thermal 40 | . 10 30 Explosive . | . . . Electromagnetic . | . . . Robot Hit Streak 8 | . 8 7 Robot Miss Streak 4 | . 4 2 Penetration Max . | . . . Secondary Targets 1 | . 1 . Max Gunslinging Chain 1 | . 1 . Shots Hit Robots 81 | . 63 18 Core Hits 38 | . 30 8 Critical Kills 1 | . . 1 Critical Parts Destroyed . | . . . Critical Strikes 1 | . . 1 Meltdown 1 | . . 1 Melee Attacks . | . . . Impact . | . . . Slashing . | . . . Piercing . | . . . Sneak Attacks . | . . . Combat Hostiles . | . . . Follow-up Attacks . | . . . Damage Inflicted 1126 | . 772 354 Guns 710 | . 686 24 Cannons 416 | . 86 330 Explosions . | . . . Melee . | . . . Ramming . | . . . Kinetic 710 | . 686 24 Thermal 416 | . 86 330 Explosive . | . . . Electromagnetic . | . . . Impact . | . . . Slashing . | . . . Piercing . | . . . Highest Corruption 5 | . 5 5 Average Corruption 5 | . 5 5 Corruption Purged . | . . . Corruption Blocked . | . . . Effects 34 | . 13 21 Message Errors 6 | . 2 4 Matter Fused 9 | . 3 6 Heat Flow Errors 6 | . 4 2 Energy Discharges 5 | . 1 4 Data Loss (minor) 1 | . 1 . Data Loss (major) 4 | . 2 2 Misfires 3 | . . 3 Overload Shots . | . . . Overflow Damage 15 | . 15 . Projectiles 15 | . 15 . Explosions . | . . . Melee . | . . . Knockbacks . | . . . Impact . | . . . Kinetic . | . . . Secondary . | . . . Self-Inflicted Damage . | . . . Shots . | . . . Rammed . | . . . Targets Rammed . | . . . Kicked . | . . . Crushed . | . . . Highest Temperature 593 | . 250 593 Average Temperature 54 | . 40 82 Received Heat Transfer 912 | . 276 636 Effects 1 | . . 1 Damage (core) 1 | . . 1 Siege Activations . | . . . Robots Corrupted . | . . . Combat Hostiles . | . . . Parts Fried . | . . . Impact Corruptions . | . . . Robots Melted 1 | . . 1 Combat Hostiles 1 | . . 1 Parts Melted 4 | . 1 3 Heat Transferred 740 | . 148 592 Parts Sabotaged . | . . . Parts Stolen . | . . . Parts Stripped . | . . . Power Chain Reactions . | . . . Alert | -11 -10 -10 ------- Run | Yrd Mat Sub Peak Influence 209 | . 209 . Initial . | . . . Average 79 | . 79 . Maximum Alert Level 1 | . 1 . Low Security (%) 94 | . 94 . Level 1 5 | . 5 . Level 2 . | . . . Level 3 . | . . . Level 4 . | . . . Level 5 . | . . . High Security . | . . . Max Security . | . . . Squads Dispatched 2 | . 2 . Investigation 2 | . 2 . Extermination . | . . . Reinforcement . | . . . Assault . | . . . Garrison . | . . . Intercept . | . . . Searches Triggered . | . . . Construction Impeded . | . . . Haulers Reinforced . | . . . Active Scanning Responses . | . . . Cargo Convoy Interrupts . | . . . Stealth | -11 -10 -10 --------- Run | Yrd Mat Sub Distress Signals . | . . . Communications Jammed . | . . . Distress Signals . | . . . Times Spotted 21 | . 16 5 Peak Tracking Total 3 | . 3 2 Tactical Retreats 1 | . 1 . Traps | -11 -10 -10 ------- Run | Yrd Mat Sub Traps Triggered 2 | . 1 1 Indirectly . | . . . Trap Hack Attempts . | . . . Triggered . | . . . Disarmed . | . . . Reprogrammed . | . . . Reused . | . . . Traps Extracted . | . . . Installed . | . . . Triggered . | . . . Machines | -11 -10 -10 ---------- Run | Yrd Mat Sub Machines Disabled 1 | . 1 . Max in Single Turn 1 | . 1 . Machines Repaired . | . . . Machines Dismantled . | . . . Machines Sabotaged . | . . . Overloaded Fab Kills . | . . . Hacking | -11 -10 -10 --------- Run | Yrd Mat Sub Machines Accessed 7 | . 7 . Terminals 6 | . 6 . Fabricators . | . . . Repair Stations . | . . . Recycling Units 1 | . 1 . Scanalyzers . | . . . Garrison Access . | . . . Total Hacks 28 | . 28 . Successful 12 | . 12 . Failed 15 | . 15 . Catastrophic 1 | . 1 . Database Lockouts 1 | . 1 . Manual 25 | . 25 . Terminals 23 | . 23 . Fabricators . | . . . Repair Stations . | . . . Recycling Units 5 | . 5 . Scanalyzers . | . . . Garrison Access . | . . . Terminal Hacks 1 | . 1 . Robot Analysis 1 | . 1 . Fabricator Hacks . | . . . Repair Station Hacks . | . . . Recycling Unit Hacks 1 | . 1 . Retrieve Components 1 | . 1 . Scanalyzer . | . . . Garrison Access Hacks . | . . . Unauthorized Hacks 10 | . 10 . Terminals 10 | . 10 . Assimilate 2 | . 2 . Botnet 6 | . 6 . Operators 1 | . 1 . Skim 1 | . 1 . Fabricators . | . . . Repair Stations . | . . . Recycling Units . | . . . Scanalyzers . | . . . Garrison Access . | . . . Data Cores Recovered . | . . . Used . | . . . Hacking Detections 7 | . 7 . Full Trace Events 3 | . 3 . Feedback Events . | . . . Feedback Blocked . | . . . Robot Schematics Acquired . | . . . Robots Built . | . . . Authchips . | . . . Time . | . . . Total Robot Build Rating . | . . . Part Schematics Acquired . | . . . Parts Built . | . . . Authchips . | . . . Time . | . . . Total Part Build Rating . | . . . Parts Repaired . | . . . Time . | . . . Parts Recycled . | . . . Recycled Matter . | . . . Retrieved Matter . | . . . Retrieved Components 10 | . 10 . Parts Scanalyzed . | . . . Part Schematics Acquired . | . . . Parts Damaged . | . . . Bothacking | -11 -10 -10 ------------ Run | Yrd Mat Sub Used RIF Installer . | . . . Robots Hacked . | . . . Non-combat . | . . . Combat . | . . . Robot Hacks Applied . | . . . Relay Couplers Released . | . . . Fabnet Peak Effective % . | . . . Robots Rewired . | . . . Allies Hacked . | . . . Hacks Repelled . | . . . Allies | -11 -10 -10 -------- Run | Yrd Mat Sub Total Allies . | . . . Largest Group . | . . . Highest-Rated Group . | . . . Highest-Rated Ally . | . . . Total Orders . | . . . Ally Attacks . | . . . Total Damage . | . . . Kills . | . . . Allies Corrupted . | . . . Allies Melted . | . . . Intel | -11 -10 -10 ------- Run | Yrd Mat Sub Robot Analysis Total 1 | . 1 . Derelict Logs Recovered 1 | . . 1 Drone Launches . | . . . Drone Recoveries . | . . . Exploration | -11 -10 -10 ------------- Run | Yrd Mat Sub Turns Passed 1999 | . 1209 790 Spaces Moved 778 | 1 510 267 Core . | . . . Treads 504 | . 496 8 Legs 15 | 1 14 . Wheels 259 | . . 259 Hover . | . . . Flight . | . . . Fastest Speed 120 | 120 120 145 Average Speed 171 | 120 184 147 Slowest Speed 240 | 120 240 240 Overloaded Moves . | . . . Propulsion Burnouts . | . . . Robots Hopped . | . . . Cave-ins Triggered . | . . . Exploration Rate (%) 32 | 1 72 24 Regions Visited 2 Branch Regions 1 Pre-discovered Areas 1 | . . 1 Known Exits Taken . | . . . Unknown Exits Taken 2 | 1 1 . Scrap Searched 3 | . . 3 Spaces Dug . | . . . Terrain Destroyed 1 | . 1 . Melee . | . . . Projectile 1 | . 1 . AOE . | . . . Terrain Rammed . | . . . Walls Destroyed . | . . . Machines Disabled . | . . . Actions | -11 -10 -10 --------- Run | Yrd Mat Sub Total 1318 | . 683 635 Wait 418 | . 68 350 Move 776 | . 509 267 Hop . | . . . Pick Up 21 | . 20 1 Fast Attach 6 | . 6 . Attach 4 | . 2 2 Detach . | . . . Swap 6 | . 6 . Drop 18 | . 18 . Fire 69 | . 54 15 Melee . | . . . Ram . | . . . Kick . | . . . Crush . | . . . Escape Stasis . | . . . Rewire . | . . . Trap . | . . . Miscellaneous . | . . . Route ------- -11/Scrapyard -10/Materials (discovered 6 exits: [*Mat x3] / [*Min x2] / [*Sub]) -10/Subcaves (discovered 1 exit: [Rec]) History --------- Turn | Location | Event 1 | -11/Scrapyard | Discovered new exit (range 0) 1 | -11/Scrapyard | Entered Materials 91 | -10/Materials | Discovered new exit (range 7) 149 | -10/Materials | Discovered new exit (range 9) 284 | -10/Materials | Discovered new exit (range 8) 304 | -10/Materials | Build established: Mutant 472 | -10/Materials | Discovered new exit (range 10) 629 | -10/Materials | Central database locked down 774 | -10/Materials | Discovered new exit (range 7) 1140 | -10/Materials | Discovered new exit (range 13) 1210 | -10/Materials | Entered Subcaves 1524 | -10/Subcaves | Discovered new exit (range 9) 1690 | -10/Subcaves | Learned 2 Materials zone layouts 1703 | -10/Subcaves | Learned location of Zion (-7) 1703 | -10/Subcaves | Met a Zionite searching for "candidates" 1725 | -10/Subcaves | A swath of the cavern ceiling suddenly collapsed 1802 | -10/Subcaves | Disturbed a concealed Subdweller 1803 | -10/Subcaves | Core integrity fell below 50% 1841 | -10/Subcaves | Shifting Twisted Machinery released Mak. Hammer 1999 | -10/Subcaves | Core integrity fell below 20% 2001 | -10/Subcaves | Core destroyed Last Messages --------------- 01816_ Acquired 37 matter. 01818_ LOSODUQG 01822_ Searching scrap... 01822_ Found Sub. Beam Cannon. 01822_ Found 31 Matter. 01823_ Acquired 22 matter. Mak. Hammer falls loose from the Twisted Machinery. 01854_ Acquired Mak. Hammer. 01881_ System corrupted: Matter fused (-5). 01958_ System corrupted: Energy discharge (-62). 01979_ System corrupted: Heat flow error (+158). 01994_ Adv. Beam Cannon destroyed. 01994_ Lgt. Treads destroyed. 01994_ Com. Wheel destroyed. 01996_ Critical hit (Meltdown: +300). 01998_ System corrupted: FCS attempts to trigger Adv. Beam Cannon. 01998_ System corrupted: Adv. Beam Cannon misfires. 01998_ K7-WKF(R) destroyed. 02000_ Critical hit (Meltdown: +270). 02001_ Overheating: Core damaged (-35). Map ----- +----------------------------------------------------+ | ?????????????????????????????????????????????????? | | #??????#?????????????????????????????????????????? | | ?????????????????????????????????????????????????? | | ?#???###?????????????????????????????????????????? | | ????## #####?????????????????????????????????????? | | ???## ##????????????????????????????????????? | | ???# #????????????????????????????????????? | | #??# ##??????#????????????????????????????? | | ???# #???????????????????????????????????? | | ??## #???????????????????????????????????? | | ### #???????????????????????????????????? | | ## #???????????????????????????????????? | | #???????????????????????????????????? | | #???????????????????????????????????? | | # ##??#????????????????????????????????? | | ## ""##????????##?????#????????????????????? | | #### #""###???#????????? #????????????????????? | | #?## ##"### #?######## ##????? ?????????????? | | ##??# ## #"" # #?# # # # "###""???????????????? | | #??## # "##" " #?#; """ ?????????????????? | | #### ##### # #?## ?? ??????????????????? | | # ##????#??# ###; #?????? ?????????????????? | | #?????#???? ?# R=###???????????????????????? | | ###??#????? ?## &%*##??????????????????????? | | ##??#????# #;#;!! ##????#????????????????? | | #??????? ##;; @ #?????????????????????? | | #??#???" ##;#### #?????????#??????????? | | # ########### #######??#?????#???????????? | | ## # # # ## ##??#????????????????????? | | ?#### ## #???????????????????????? | | ????# ## #?#???#?????????????????? | | ????# #### # # ##???????????????????????? | | ????# ##??## # ##??????#????????????????? | | ??## ##??#?## # ##??????????????????????? | | ??# #??????### ## ##?????????????????#???? | | ??# ##????#???## # ##???????????#????????? | | ??######?????????### #??????????????#?????? | | ???????????????#?# #??#?????????????????? | | ?????????????##??# #?????####???????????? | | ?????????????????# #????## ##??????????? | | ?????????#???????# #####????# #?###??????? | | ????????????????### #######??## ### #??????? | | ????????##?#??????# #?## #### ## ####???# | | ???????## ###????## ### ##### | | ??????## ##??# ## ## | | ??????# #### ## ## | | ??????????# ### # | | ??????????# ### ##### | | ??????????## ##?########???# | | ???????????# ### ##?????????"??## | +----------------------------------------------------+ Best States ------------- Heat Dissipation 25 Energy Generation 10 Energy Capacity 250 Matter Stores 300 Matter Capacity 300 Sight Range 16 Terrain Scan Range 14 Terrain Scan Density 10 Evasion (%) 50 Recoil Reduction 2 Item Schematics ----------------- None Robot Schematics ------------------ None Fabricated ------------ Nothing Alien Tech Used ----------------- None Achievements -------------- None Challenges ------------ None Game ------ Seed RelayBombardmentLattice Manual? 0 Play Time 00:09:27 Cumulative 154.6 hours Start 2024.12.03 @ 18:59:19 End 2024.12.03 @ 19:09:17 Sessions 1 Manual Loads 0 Difficulty Rogue Special Mode None Game No. 289 Rogue 289 Adventurer 0 Explorer 0 Win Type - Total 0 Types 0/0/0/0/0/0/0/0/0 Lore% 45 Gallery% 42 Achievement% 36 Wizard Run 0 Options --------- Layout 0 ASCII 0 Keyboard 0 Movement Mouse Keybinds 0 Fullscreen 1 Font 24/Smallcaps Map View 91x25 Zoom Use 94% Tactical HUD 1 Map Filters NONE Filters NONE Steam 1 RUN: 8cd74d89-e0e8-4ed5-8db1-f5deccec9c42